bitfinex/quotes_BTCUSD_20230101
["timestamp","ask_amount","ask_price","bid_price","bid_amount"]
[1672588117078,2.18741654,16564.0,16563.0,0.13777668]
[1672588118274,2.18830506,16564.0,16563.0,0.13777668]
[1672588119271,1.57673974,16564.0,16563.0,0.13777668]
[1672588121260,0.95571774,16564.0,16563.0,0.13777668]
[1672588121728,0.95482922,16564.0,16563.0,0.13777668]
[1672588122232,1.56636372,16564.0,16563.0,0.13777668]
[1672588122480,2.18738572,16564.0,16563.0,0.13777668]
[1672588125394,2.18827424,16564.0,16563.0,0.13777668]
[1672588126502,1.57673974,16564.0,16563.0,0.13777668]
[1672588127983,2.18832535,16564.0,16563.0,0.13777668]
[1672588131018,1.57673974,16564.0,16563.0,0.13777668]
[1672588131248,0.95571774,16564.0,16563.0,0.13777668]
[1672588132020,1.57673974,16564.0,16563.0,0.13777668]
[1672588133757,1.57585122,16564.0,16563.0,0.13777668]
[1672588134002,1.56657648,16564.0,16563.0,0.13777668]
[1672588135121,1.56657648,16564.0,16563.0,0.13766357]
[1672588135371,0.95482922,16564.0,16563.0,0.13766357]
[1672588135642,1.56663742,16564.0,16563.0,0.13766357]
[1672588135887,2.18765942,16564.0,16563.0,0.13766357]
[1672588136619,0.6155652,16564.0,16563.0,0.63803761]
[1672588137845,0.61645372,16564.0,16563.0,0.63803761]
[1672588138054,0.61645372,16564.0,16563.0,0.62551246]
[1672588138538,0.6155652,16564.0,16563.0,0.62551246]
[1672588139027,0.61645372,16564.0,16563.0,0.62551246]
[1672588139279,0.6155652,16564.0,16563.0,0.62551246]
[1672588141541,0.61645372,16564.0,16563.0,0.62551246]
[1672588141785,0.61645372,16564.0,16563.0,0.12513842]
[1672588142295,0.00464552,16564.0,16563.0,0.12513842]
[1672588142794,1.02958948,16564.0,16563.0,0.18391403]
[1672588143773,1.02870096,16564.0,16563.0,0.18391403]
[1672588144034,1.02958948,16564.0,16563.0,0.18391403]
[1672588144287,1.02870096,16564.0,16563.0,0.18391403]
[1672588146317,1.02958948,16564.0,16563.0,0.18391403]
[1672588146557,1.02870096,16564.0,16563.0,0.18391403]
[1672588147297,1.02958948,16564.0,16563.0,0.18391403]
[1672588148052,1.02870096,16564.0,16563.0,0.18391403]
[1672588148296,1.02958948,16564.0,16563.0,0.18391403]
[1672588148542,1.02958948,16564.0,16563.0,0.12513842]
[1672588148796,1.02870096,16564.0,16563.0,0.12513842]
[1672588149298,1.02958948,16564.0,16563.0,0.12513842]
[1672588150056,1.02870096,16564.0,16563.0,0.12513842]
[1672588152627,1.02870096,16564.0,16563.0,0.18391403]
[1672588154315,1.02870096,16564.0,16563.0,0.12513842]
[1672588155066,1.02958948,16564.0,16563.0,0.12513842]
[1672588155812,1.02870096,16564.0,16563.0,0.12513842]
[1672588156821,1.02870096,16564.0,16563.0,0.12502388]
[1672588168177,1.64068469,16564.0,16563.0,0.12502388]
[1672588172617,1.64068469,16564.0,16563.0,0.22796936]
[1672588173625,1.02870096,16564.0,16563.0,0.22796936]
[1672588173874,1.0196657,16564.0,16563.0,0.22796936]
[1672588174119,1.6406877,16564.0,16563.0,0.22796936]
[1672588174373,1.64068818,16564.0,16563.0,0.22796936]
[1672588174623,1.02870096,16564.0,16563.0,0.22796936]
[1672588175658,1.02870096,16564.0,16563.0,0.12502388]
[1672588177167,1.64069005,16564.0,16563.0,0.12502388]
[1672588177412,1.02870096,16564.0,16563.0,0.12502388]
[1672588177654,0.40767896,16564.0,16563.0,0.12502388]
[1672588178169,1.02870096,16564.0,16563.0,0.12491735]
[1672588178396,1.02870096,16564.0,16563.0,0.22785218]
[1672588181117,1.23680452,16564.0,16563.0,0.22785218]
[1672588181609,1.23680452,16564.0,16563.0,0.67268469]
[1672588182102,0.61578252,16564.0,16563.0,0.67268469]
[1672588183367,0.61667104,16564.0,16563.0,0.56974986]
[1672588183616,0.61578252,16564.0,16563.0,0.56974986]
[1672588185605,0.61078252,16564.0,16563.0,0.56974986]
[1672588186847,1.23180452,16564.0,16563.0,0.56974986]
[1672588188062,0.61078252,16564.0,16563.0,0.56974986]
[1672588188304,1.23180452,16564.0,16563.0,0.56974986]
[1672588189063,0.61078252,16564.0,16563.0,0.56974986]
[1672588189332,1.23180452,16564.0,16563.0,0.56974986]
[1672588189584,0.61078252,16564.0,16563.0,0.56974986]
[1672588192596,1.23180452,16564.0,16563.0,0.56974986]
[1672588193335,1.23269304,16564.0,16563.0,0.56974986]
[1672588193578,0.61078252,16564.0,16563.0,0.56974986]
[1672588194054,0.61078252,16564.0,16563.0,0.57159279]
[1672588194782,1.23180452,16564.0,16563.0,0.57159279]
[1672588194997,1.23180452,16564.0,16563.0,0.56974986]
[1672588195875,1.23180452,16564.0,16563.0,0.57159279]
[1672588196116,0.61078252,16564.0,16563.0,0.57159279]
[1672588196365,0.61078252,16564.0,16563.0,0.62875207]
[1672588200523,1.23180452,16564.0,16563.0,0.62700128]
[1672588200770,0.61078252,16564.0,16563.0,0.62700128]
[1672588201022,0.61078252,16564.0,16563.0,0.62690914]
[1672588201266,0.61078252,16564.0,16563.0,0.56974986]
[1672588201999,0.61078252,16564.0,16563.0,0.57141769]
[1672588204890,0.61078252,16564.0,16563.0,0.56974986]
[1672588205853,0.61078252,16564.0,16563.0,0.56983761]
[1672588206186,0.61167104,16564.0,16563.0,0.56974986]
[1672588206436,0.61078252,16564.0,16563.0,0.56974986]
[1672588207181,0.61167104,16564.0,16563.0,0.56974986]
[1672588207423,0.61167104,16564.0,16563.0,0.62672485]
[1672588207663,0.61078252,16564.0,16563.0,0.62672485]
[1672588208176,0.61078252,16564.0,16563.0,0.6268126]
[1672588208422,0.61078252,16564.0,16563.0,0.62672485]
[1672588208902,0.61167104,16564.0,16563.0,0.56974986]
[1672588209146,0.61078252,16564.0,16563.0,0.56983761]
[1672588209395,0.61078252,16564.0,16563.0,0.5697573]
[1672588209648,0.61078252,16564.0,16563.0,0.56966955]
[1672588210036,0.60578252,16564.0,16563.0,0.57134156]
[1672588210280,0.60578252,16564.0,16563.0,0.56966955]
[1672588213266,0.60667104,16564.0,16563.0,0.56966955]
[1672588214044,0.60578252,16564.0,16563.0,0.56966955]
[1672588214774,0.60578252,16564.0,16563.0,0.62663651]
[1672588215522,0.60578252,16564.0,16563.0,0.62680346]
[1672588216511,0.60578252,16564.0,16563.0,0.62663651]
[1672588217002,0.60578252,16564.0,16563.0,0.62680346]
[1672588217245,0.60578252,16564.0,16563.0,0.62663651]
[1672588218189,0.60578252,16564.0,16563.0,0.56966955]
[1672588222143,0.60578252,16564.0,16563.0,0.57005866]
[1672588227025,0.60578252,16564.0,16563.0,0.56966955]
[1672588228547,1.22680452,16564.0,16563.0,0.56966955]
[1672588229036,0.60578252,16564.0,16563.0,0.56966955]
[1672588229282,0.60578252,16564.0,16563.0,0.62663651]
[1672588230520,0.60578252,16564.0,16563.0,0.62702562]
[1672588231262,0.60578252,16564.0,16563.0,0.62695157]
[1672588231508,0.60667104,16564.0,16563.0,0.62656246]
[1672588232016,0.60578252,16564.0,16563.0,0.62656246]
[1672588233333,1.22680452,16564.0,16563.0,0.62656246]
[1672588234613,0.60578252,16564.0,16563.0,0.62656246]
[1672588235311,1.56186663,16565.0,16563.0,0.62656246]
[1672588235553,1.56186663,16565.0,16564.0,0.06265625]
[1672588236054,2.18288863,16565.0,16563.0,0.62656246]
[1672588236300,0.621022,16564.0,16563.0,0.62656246]
[1672588236542,0.616022,16564.0,16563.0,0.62656246]
[1672588236798,1.56186663,16565.0,16563.0,0.62656246]
[1672588237048,2.00467989,16565.0,16564.0,0.001]
[1672588237270,2.18477015,16565.0,16564.0,0.06375625]
[1672588238018,2.18377015,16565.0,16564.0,0.19852658]
[1672588238258,2.62558341,16565.0,16564.0,0.73912669]
[1672588238514,2.18377015,16565.0,16564.0,0.73912669]
[1672588238762,2.18477015,16565.0,16564.0,0.74012669]
[1672588239509,1.83239304,16565.0,16564.0,0.74012669]
[1672588239753,1.83150452,16565.0,16564.0,0.74012669]
[1672588240494,1.83239304,16565.0,16564.0,0.74012669]
[1672588241003,1.83150452,16565.0,16564.0,0.74012669]
[1672588241760,1.83150452,16565.0,16564.0,0.73112669]
[1672588243014,2.6410767,16565.0,16564.0,0.73112669]
[1672588244563,2.64196522,16565.0,16564.0,0.73112669]
[1672588245028,2.64196522,16565.0,16564.0,0.67737044]
[1672588245534,1.83239304,16565.0,16564.0,0.67737044]
[1672588246763,2.2742063,16565.0,16564.0,0.67737044]
[1672588249316,1.83239304,16565.0,16564.0,0.67737044]
[1672588250083,2.2742063,16565.0,16564.0,0.67737044]
[1672588250597,1.66842378,16565.0,16564.0,0.67737044]
[1672588250902,1.225722,16565.0,16564.0,0.67737044]
[1672588251102,1.83747905,16565.0,16564.0,0.67737044]
[1672588251520,1.225722,16565.0,16564.0,0.67737044]
[1672588253989,1.66753526,16565.0,16564.0,0.67737044]
[1672588254771,1.225722,16565.0,16564.0,0.67737044]
[1672588255810,1.22661052,16565.0,16564.0,0.67737044]
[1672588256831,1.225722,16565.0,16564.0,0.67737044]
[1672588258804,1.83844485,16565.0,16564.0,0.67737044]
[1672588259023,1.83755633,16565.0,16564.0,0.67737044]
[1672588259516,1.225722,16565.0,16564.0,0.67737044]
[1672588260528,1.22661052,16565.0,16564.0,0.67737044]
[1672588261775,1.225722,16565.0,16564.0,0.67737044]
[1672588262025,1.225722,16565.0,16564.0,0.67727432]
[1672588262265,1.22661052,16565.0,16564.0,0.67727432]
[1672588262795,1.225722,16565.0,16564.0,0.67727432]
[1672588263759,1.22661052,16565.0,16564.0,0.67727432]
[1672588264216,1.225722,16565.0,16564.0,0.67727432]
[1672588264428,1.66753526,16565.0,16564.0,0.67727432]
[1672588264918,1.225722,16565.0,16564.0,0.67727432]
[1672588265165,0.604707,16565.0,16564.0,0.67727432]
[1672588265659,1.22661052,16565.0,16564.0,0.67727432]
[1672588265903,1.225722,16565.0,16564.0,0.67727432]
[1672588266146,1.66753526,16565.0,16564.0,0.67727432]
[1672588267178,1.225722,16565.0,16564.0,0.67727432]
[1672588268787,1.22661052,16565.0,16564.0,0.67727432]
[1672588269040,1.225722,16565.0,16564.0,0.67727432]
[1672588270831,1.22661052,16565.0,16564.0,0.67727432]
[1672588273602,1.225722,16565.0,16564.0,0.67727432]
[1672588278876,1.22661052,16565.0,16564.0,0.67727432]
[1672588279870,1.225722,16565.0,16564.0,0.67727432]
[1672588283441,1.225722,16565.0,16564.0,0.67716295]
[1672588284974,1.66842378,16565.0,16564.0,0.13656284]
[1672588285718,1.66753526,16565.0,16564.0,0.13695193]
[1672588285941,1.66753526,16565.0,16564.0,0.13656284]
[1672588287199,1.66753526,16565.0,16564.0,0.13695193]
[1672588287417,1.225722,16565.0,16564.0,0.13656284]
[1672588288399,1.225722,16565.0,16564.0,0.13695193]
[1672588288620,1.225722,16565.0,16564.0,0.13656284]
[1672588290352,0.604707,16565.0,16564.0,0.61792889]
[1672588291348,1.225722,16565.0,16564.0,0.61792889]
[1672588293763,1.22661052,16565.0,16564.0,0.61792889]
[1672588294003,1.225722,16565.0,16564.0,0.13656284]
[1672588294532,1.66753526,16565.0,16564.0,0.13656284]
[1672588295122,1.22661052,16565.0,16564.0,0.13656284]
[1672588295622,1.225722,16565.0,16564.0,0.13656284]
[1672588296123,1.22661052,16565.0,16564.0,0.13656284]
[1672588296377,1.225722,16565.0,16564.0,0.13656284]
[1672588297617,1.66753526,16565.0,16564.0,0.13656284]
[1672588299286,1.225722,16565.0,16564.0,0.13656284]
[1672588300056,0.604707,16565.0,16564.0,0.13656284]
[1672588301275,1.225722,16565.0,16564.0,0.13656284]
[1672588302013,1.22661052,16565.0,16564.0,0.13656284]
[1672588302266,1.225722,16565.0,16564.0,0.13656284]
[1672588303488,1.22661052,16565.0,16564.0,0.13656284]
[1672588303729,1.225722,16565.0,16564.0,0.13656284]
[1672588304236,1.225722,16565.0,16564.0,0.136475]
[1672588305276,1.22661052,16565.0,16564.0,0.136475]
[1672588308677,1.225722,16565.0,16564.0,0.136475]
[1672588309662,0.604707,16565.0,16564.0,0.136475]
[1672588310419,1.225722,16565.0,16564.0,0.136475]
[1672588311386,1.66753526,16565.0,16564.0,0.136475]
[1672588311610,1.225722,16565.0,16564.0,0.136475]
[1672588312355,1.22661052,16565.0,16564.0,0.136475]
[1672588312836,1.225722,16565.0,16564.0,0.136475]
[1672588313350,0.604707,16565.0,16564.0,0.136475]
[1672588315658,1.225722,16565.0,16564.0,0.136475]
[1672588315910,1.22661052,16565.0,16564.0,0.136475]
[1672588316175,1.66842378,16565.0,16564.0,0.136475]
[1672588316681,1.66753526,16565.0,16564.0,0.136475]
[1672588316933,1.66842378,16565.0,16564.0,0.136475]
[1672588320748,1.225722,16565.0,16564.0,0.136475]
[1672588321002,0.604707,16565.0,16564.0,0.136475]
[1672588324464,0.60559552,16565.0,16564.0,0.136475]
[1672588325207,1.66842378,16565.0,16564.0,0.136475]
[1672588326194,1.66842378,16565.0,16564.0,0.13635948]
[1672588328969,1.66753526,16565.0,16564.0,0.13635948]
[1672588330235,1.225722,16565.0,16564.0,0.13635948]
[1672588330489,0.604707,16565.0,16564.0,0.13635948]
[1672588332625,0.60559552,16565.0,16564.0,0.13635948]
[1672588332871,0.604707,16565.0,16564.0,0.13635948]
[1672588333853,0.60559552,16565.0,16564.0,0.13635948]
[1672588334078,0.604707,16565.0,16564.0,0.13635948]
[1672588334957,0.60559552,16565.0,16564.0,0.13635948]
[1672588337302,0.604707,16565.0,16564.0,0.13635948]
[1672588342928,0.604707,16565.0,16564.0,0.20356619]
[1672588343347,0.60559552,16565.0,16564.0,0.20356619]
[1672588343596,0.604707,16565.0,16564.0,0.20356619]
[1672588347953,0.604707,16565.0,16564.0,0.13635948]
[1672588349312,0.604707,16565.0,16564.0,0.13624326]
[1672588349808,0.60559552,16565.0,16564.0,0.13624326]
[1672588350607,0.604707,16565.0,16564.0,0.13624326]
[1672588357632,0.604707,16565.0,16564.0,0.72327421]
[1672588358163,0.604707,16565.0,16564.0,0.61084921]
[1672588359172,0.60559552,16565.0,16564.0,0.61084921]
[1672588359678,0.604707,16565.0,16564.0,0.61084921]
[1672588360181,0.60559552,16565.0,16564.0,0.61084921]
[1672588360752,0.604707,16565.0,16564.0,0.61084921]
[1672588361269,0.60559552,16565.0,16564.0,0.61084921]
[1672588361518,0.604707,16565.0,16564.0,0.61084921]
[1672588365018,0.60559552,16565.0,16564.0,0.61084921]
[1672588365866,0.604707,16565.0,16564.0,0.61084921]
[1672588366051,0.60559552,16565.0,16564.0,0.13624326]
[1672588366302,1.22661052,16565.0,16564.0,0.13624326]
[1672588366547,1.66842378,16565.0,16564.0,0.13624326]
[1672588367040,1.225722,16565.0,16564.0,0.13624326]
[1672588368025,0.604707,16565.0,16564.0,0.13624326]
[1672588370767,0.60559552,16565.0,16564.0,0.13624326]
[1672588371445,0.604707,16565.0,16564.0,0.13624326]
[1672588372727,0.60559552,16565.0,16564.0,0.13624326]
[1672588373171,0.604707,16565.0,16564.0,0.13624326]
[1672588373988,0.604707,16565.0,16564.0,0.20200344]
[1672588374235,0.6045983,16565.0,16564.0,0.20200344]
[1672588376156,0.60548682,16565.0,16564.0,0.20200344]
[1672588376330,0.6045983,16565.0,16564.0,0.20200344]
[1672588378379,0.6045983,16565.0,16564.0,0.13615435]
[1672588380016,1.04641156,16565.0,16564.0,0.13615435]
[1672588380268,1.2256133,16565.0,16564.0,0.13615435]
[1672588380516,1.66742656,16565.0,16564.0,0.13615435]
[1672588381918,1.66831508,16565.0,16564.0,0.13615435]
[1672588382163,1.66742656,16565.0,16564.0,0.13615435]
[1672588383229,1.66831508,16565.0,16564.0,0.13615435]
[1672588384351,1.66742656,16565.0,16564.0,0.13615435]
[1672588384859,1.2256133,16565.0,16564.0,0.13615435]
[1672588385119,1.04641156,16565.0,16564.0,0.13615435]
[1672588385343,0.6045983,16565.0,16564.0,0.13615435]
[1672588386584,1.04730008,16565.0,16564.0,0.13615435]
[1672588386826,1.66831508,16565.0,16564.0,0.13615435]
[1672588387083,1.66742656,16565.0,16564.0,0.13615435]
[1672588387612,1.66831508,16565.0,16564.0,0.13615435]
[1672588388846,1.66742656,16565.0,16564.0,0.13615435]
[1672588390577,1.2256133,16565.0,16564.0,0.13615435]
[1672588391027,0.6045983,16565.0,16564.0,0.13615435]
[1672588391502,0.6045983,16565.0,16564.0,0.7437079]
[1672588391833,0.6045983,16565.0,16564.0,0.7902927]
[1672588392103,0.6045983,16565.0,16564.0,0.6778677]
[1672588392589,1.21649568,16565.0,16564.0,0.6778677]
[1672588392805,0.60548682,16565.0,16564.0,0.6778677]
[1672588393096,0.6045983,16565.0,16564.0,0.6778677]
[1672588394304,1.2256133,16565.0,16564.0,0.6778677]
[1672588395308,0.6045983,16565.0,16564.0,0.6778677]
[1672588396316,0.6045983,16565.0,16564.0,0.67775386]
[1672588396810,0.60548682,16565.0,16564.0,0.67775386]
[1672588397026,1.2256133,16565.0,16564.0,0.67775386]
[1672588398509,1.22650182,16565.0,16564.0,0.67775386]
[1672588398764,1.2256133,16565.0,16564.0,0.74552925]
[1672588399752,1.2256133,16565.0,16564.0,0.67775386]
[1672588405103,1.22650182,16565.0,16564.0,0.67775386]
[1672588405873,1.2256133,16565.0,16564.0,0.67775386]
[1672588406367,1.22650182,16565.0,16564.0,0.67775386]
[1672588406690,1.2256133,16565.0,16564.0,0.67775386]
[1672588409937,1.22650182,16565.0,16564.0,0.67775386]
[1672588410470,1.2256133,16565.0,16564.0,0.67775386]
[1672588412034,1.22650182,16565.0,16564.0,0.67775386]
[1672588412727,1.2256133,16565.0,16564.0,0.67775386]
[1672588417369,1.2256133,16565.0,16564.0,0.67786084]
[1672588418427,1.2256133,16565.0,16564.0,0.67775386]
[1672588418677,1.22650182,16565.0,16564.0,0.67775386]
[1672588419174,1.22650182,16565.0,16564.0,0.74542014]
[1672588419175,1.2256133,16565.0,16564.0,0.74542014]
[1672588420001,1.22650182,16565.0,16564.0,0.74542014]
[1672588420249,1.2256133,16565.0,16564.0,0.74542014]
[1672588421402,1.2256133,16565.0,16564.0,0.67764475]
[1672588421615,1.22650182,16565.0,16564.0,0.67764475]
[1672588421875,1.2256133,16565.0,16564.0,0.67764475]
[1672588422638,1.22650182,16565.0,16564.0,0.67764475]
[1672588423135,1.2256133,16565.0,16564.0,0.67764475]
[1672588424133,1.22650182,16565.0,16564.0,0.67764475]
[1672588424373,1.2256133,16565.0,16564.0,0.67764475]
[1672588427436,1.22650182,16565.0,16564.0,0.67764475]
[1672588427893,1.2256133,16565.0,16564.0,0.67764475]
[1672588428361,1.22650182,16565.0,16564.0,0.67764475]
[1672588429355,1.2256133,16565.0,16564.0,0.67764475]
[1672588430538,1.22650182,16565.0,16564.0,0.67764475]
[1672588431567,1.2256133,16565.0,16564.0,0.67764475]
[1672588435290,1.22650182,16565.0,16564.0,0.67764475]
[1672588436267,1.22650182,16565.0,16564.0,0.1359314]
[1672588436512,1.66831508,16565.0,16564.0,0.1359314]
[1672588437493,1.22650182,16565.0,16564.0,0.1359314]
[1672588438234,1.2256133,16565.0,16564.0,0.1359314]
[1672588439205,1.22650182,16565.0,16564.0,0.1359314]
[1672588439419,1.2256133,16565.0,16564.0,0.1359314]
[1672588439671,1.66742656,16565.0,16564.0,0.1359314]
[1672588439916,1.66742656,16565.0,16564.0,0.13585369]
[1672588440148,1.22650182,16565.0,16564.0,0.13585369]
[1672588440405,1.2256133,16565.0,16564.0,0.13585369]
[1672588440648,1.04641156,16565.0,16564.0,0.13585369]
[1672588440894,0.6045983,16565.0,16564.0,0.13585369]
[1672588442822,0.60548682,16565.0,16564.0,0.13585369]
[1672588443066,0.6045983,16565.0,16564.0,0.13585369]
[1672588444492,0.60548682,16565.0,16564.0,0.13585369]
[1672588444703,0.6045983,16565.0,16564.0,0.13585369]
[1672588446216,0.6045983,16565.0,16564.0,0.7353493]
[1672588446473,0.6045983,16565.0,16564.0,0.8477743]
[1672588446970,0.6045983,16565.0,16564.0,0.7353493]
[1672588453638,0.60548682,16565.0,16564.0,0.7353493]
[1672588454136,0.6045983,16565.0,16564.0,0.7353493]
[1672588460396,0.60548682,16565.0,16564.0,0.7353493]
[1672588460645,0.6045983,16565.0,16564.0,0.7353493]
[1672588462805,0.6045983,16565.0,16564.0,0.73528919]
[1672588463050,0.60548682,16565.0,16564.0,0.73528919]
[1672588463649,0.60548682,16565.0,16564.0,0.13579358]
[1672588463888,1.22650182,16565.0,16564.0,0.13579358]
[1672588464684,0.60548682,16565.0,16564.0,0.13579358]
[1672588464923,0.6045983,16565.0,16564.0,0.13579358]
[1672588465171,0.6045983,16565.0,16564.0,0.20319585]
[1672588465849,0.6045983,16565.0,16564.0,0.13579358]
[1672588469466,0.60548682,16565.0,16564.0,0.13579358]
[1672588473495,1.22650182,16565.0,16564.0,0.13579358]
[1672588474368,1.22150182,16565.0,16564.0,0.13579358]
[1672588474843,1.2206133,16565.0,16564.0,0.13579358]
[1672588475896,1.2206133,16565.0,16564.0,0.20319585]
[1672588477045,1.2206133,16565.0,16564.0,0.13579358]
[1672588479495,1.22150182,16565.0,16564.0,0.13579358]
[1672588479963,1.2206133,16565.0,16564.0,0.13579358]
[1672588483956,1.22150182,16565.0,16564.0,0.13579358]
[1672588484927,1.2206133,16565.0,16564.0,0.13579358]
[1672588485899,1.22150182,16565.0,16564.0,0.13579358]
[1672588486136,1.2206133,16565.0,16564.0,0.13579358]
[1672588488356,1.22150182,16565.0,16564.0,0.13579358]
[1672588488680,1.2206133,16565.0,16564.0,0.13579358]
[1672588490497,1.22150182,16565.0,16564.0,0.13579358]
[1672588490743,1.2206133,16565.0,16564.0,0.13579358]
[1672588492235,1.2206133,16565.0,16564.0,0.20319585]
[1672588492742,1.2206133,16565.0,16564.0,0.13579358]
[1672588494733,1.2206133,16565.0,16564.0,0.13569749]
[1672588495235,1.22150182,16565.0,16564.0,0.13569749]
[1672588495453,1.2206133,16565.0,16564.0,0.13569749]
[1672588496491,1.22150182,16565.0,16564.0,0.13569749]
[1672588497310,1.2206133,16565.0,16564.0,0.13569749]
[1672588497540,1.22150182,16565.0,16564.0,0.13569749]
[1672588498526,1.2206133,16565.0,16564.0,0.13569749]
[1672588498771,1.66242656,16565.0,16564.0,0.13569749]
[1672588501984,1.2206133,16565.0,16564.0,0.13569749]
[1672588502231,1.22150182,16565.0,16564.0,0.13569749]
[1672588502690,1.2206133,16565.0,16564.0,0.13569749]
[1672588503195,1.22150182,16565.0,16564.0,0.13569749]
[1672588505893,1.2206133,16565.0,16564.0,0.13569749]
[1672588507027,1.22150182,16565.0,16564.0,0.13569749]
[1672588507240,1.2206133,16565.0,16564.0,0.13569749]
[1672588508144,1.22150182,16565.0,16564.0,0.13569749]
[1672588508590,1.2206133,16565.0,16564.0,0.13569749]
[1672588509196,0.5995983,16565.0,16564.0,0.13569749]
[1672588509621,1.2206133,16565.0,16564.0,0.13569749]
[1672588510005,1.22150182,16565.0,16564.0,0.13569749]
[1672588510713,1.2206133,16565.0,16564.0,0.13569749]
[1672588510957,0.5995983,16565.0,16564.0,0.13569749]
[1672588511509,0.5995983,16565.0,16564.0,0.66406652]
[1672588514613,0.60048682,16565.0,16564.0,0.66406652]
[1672588515154,0.5995983,16565.0,16564.0,0.66406652]
[1672588519592,0.5995983,16565.0,16564.0,0.66395359]
[1672588526293,1.21139513,16565.0,16564.0,0.66395359]
[1672588526510,0.5995983,16565.0,16564.0,0.66395359]
[1672588527753,1.21139425,16565.0,16564.0,0.66395359]
[1672588530748,1.83240925,16565.0,16564.0,0.66395359]
[1672588531008,1.2206133,16565.0,16564.0,0.13558456]
[1672588531502,1.22150182,16565.0,16564.0,0.13558456]
[1672588532984,1.2206133,16565.0,16564.0,0.13558456]
[1672588533471,1.2206133,16565.0,16564.0,0.20163229]
[1672588534527,1.2206133,16565.0,16564.0,0.13558456]
[1672588535949,0.5995983,16565.0,16564.0,0.13558456]
[1672588536950,0.60048682,16565.0,16564.0,0.13558456]
[1672588537199,1.2206133,16565.0,16564.0,0.13558456]
[1672588538170,1.22150182,16565.0,16564.0,0.13558456]
[1672588538421,1.2206133,16565.0,16564.0,0.13558456]
[1672588539305,1.22150182,16565.0,16564.0,0.001]
[1672588540275,1.2206133,16565.0,16564.0,0.14118987]
[1672588540515,1.22150182,16565.0,16564.0,0.14118987]
[1672588541278,1.2206133,16565.0,16564.0,0.14118987]
[1672588541523,0.5995983,16565.0,16564.0,0.14118987]
[1672588542237,0.5995983,16565.0,16564.0,0.14108158]
[1672588542736,0.5995983,16565.0,16564.0,0.25130879]
[1672588543476,0.60048682,16565.0,16564.0,0.25130879]
[1672588544287,0.5995983,16565.0,16564.0,0.25130879]
[1672588545497,0.5995983,16565.0,16564.0,0.14108158]
[1672588548766,1.21151091,16565.0,16564.0,0.14108158]
[1672588549296,0.5995983,16565.0,16564.0,0.14108158]
[1672588551393,0.5995983,16565.0,16564.0,0.25350658]
[1672588551642,0.5995983,16565.0,16564.0,0.14108158]
[1672588552642,0.60048682,16565.0,16564.0,0.25350658]
[1672588552903,0.5995983,16565.0,16564.0,0.14108158]
[1672588553161,0.5995983,16565.0,16564.0,0.25350658]
[1672588554393,1.21151967,16565.0,16564.0,0.25350658]
[1672588555382,0.5995983,16565.0,16564.0,0.25350658]
[1672588555603,0.5995983,16565.0,16564.0,0.14108158]
[1672588555865,0.5995983,16565.0,16564.0,0.25350658]
[1672588557096,0.60048682,16565.0,16564.0,0.25350658]
[1672588557597,0.5995983,16565.0,16564.0,0.14108158]
[1672588558364,0.00188852,16565.0,16564.0,0.14108158]
[1672588558877,0.61292116,16565.0,16564.0,0.14108158]
[1672588559378,0.001,16565.0,16564.0,0.14108158]
[1672588559623,0.00188852,16565.0,16564.0,0.14108158]
[1672588559874,0.61292127,16565.0,16564.0,0.14108158]
[1672588560359,0.61293049,16565.0,16564.0,0.14108158]
[1672588562100,0.61381901,16565.0,16564.0,0.14108158]
[1672588562347,1.43906464,16565.0,16564.0,0.14108158]
[1672588562591,2.06007964,16565.0,16564.0,0.14108158]
[1672588562805,0.99725138,16565.0,16564.0,0.14108158]
[1672588563054,0.9981399,16565.0,16564.0,0.14108158]
[1672588563525,1.6191549,16565.0,16564.0,0.14108158]
[1672588563803,1.61826638,16565.0,16564.0,0.14108158]
[1672588564072,1.6191549,16565.0,16564.0,0.14108158]
[1672588566659,1.6191549,16565.0,16564.0,0.140983]
[1672588571521,0.9981399,16565.0,16564.0,0.140983]
[1672588572451,0.9981399,16565.0,16564.0,0.62625394]
[1672588574916,1.2165962,16565.0,16564.0,0.62625394]
[1672588575167,0.6129142,16565.0,16564.0,0.62625394]
[1672588577584,0.6129142,16565.0,16564.0,1.28674068]
[1672588577585,0.001,16565.0,16564.0,1.28674068]
[1672588577826,0.54481733,16565.0,16564.0,2.49417668]
[1672588578833,0.54481733,16565.0,16564.0,3.09789468]
[1672588578834,0.001,16565.0,16564.0,3.09789468]
[1672588579832,0.45390041,16565.0,16564.0,2.91446374]
[1672588580083,0.81615858,16565.0,16564.0,3.21446374]
[1672588580327,0.6350159,16565.0,16564.0,3.23273469]
[1672588580596,0.45386225,16565.0,16564.0,3.93273469]
[1672588580850,0.001,16565.0,16564.0,4.51451073]
[1672588581116,0.18214115,16565.0,16564.0,3.93273469]
[1672588581391,0.18214115,16565.0,16564.0,4.38496809]
[1672588581589,0.78714492,16566.0,16565.0,0.5]
[1672588581864,0.42485012,16566.0,16565.0,4.30854673]
[1672588582113,0.42485012,16566.0,16565.0,4.91815602]
[1672588582862,0.82543836,16567.0,16565.0,4.30854673]
[1672588582863,0.1913843,16567.0,16565.0,4.30854673]
[1672588583115,0.1913843,16567.0,16566.0,0.74181326]
[1672588583363,0.1913843,16567.0,16566.0,2.76151026]
[1672588583632,0.1913843,16567.0,16566.0,3.79600283]
[1672588584144,0.1923843,16567.0,16566.0,3.79600283]
[1672588584390,0.37339536,16568.0,16566.0,3.79600283]
[1672588584643,0.01110056,16568.0,16567.0,1.3555906]
[1672588584883,0.01110056,16568.0,16567.0,2.9610286]
[1672588585128,0.01014266,16568.0,16567.0,3.02637201]
[1672588585613,0.01014266,16568.0,16567.0,3.56124559]
[1672588586391,0.01114266,16568.0,16567.0,3.56124559]
[1672588586648,0.01014266,16568.0,16567.0,3.56124559]
[1672588586891,0.01114266,16568.0,16567.0,3.57124559]
[1672588587391,0.01114266,16568.0,16567.0,4.17485459]
[1672588593162,0.01114266,16568.0,16567.0,3.93998101]
[1672588594142,0.01114266,16568.0,16567.0,4.47069412]
[1672588594646,0.01114266,16568.0,16567.0,3.93998101]
[1672588595877,0.01114266,16568.0,16567.0,4.45027953]
[1672588597147,0.01114266,16568.0,16567.0,3.93998101]
[1672588597394,0.01114266,16568.0,16567.0,4.54049057]
[1672588598145,0.01114266,16568.0,16567.0,3.93998101]
[1672588599163,0.01114266,16568.0,16567.0,4.46603882]
[1672588599409,0.01114266,16568.0,16567.0,3.93998101]
[1672588602662,0.01114266,16568.0,16567.0,4.3856036]
[1672588602925,0.01114266,16568.0,16567.0,3.93998101]
[1672588603171,0.01114266,16568.0,16567.0,4.49848124]
[1672588603919,0.01114266,16568.0,16567.0,3.93998101]
[1672588604149,0.01114266,16568.0,16567.0,3.96563381]
[1672588604435,0.01114266,16568.0,16567.0,4.40705041]
[1672588606218,0.01114266,16568.0,16567.0,4.70873705]
[1672588612089,0.01114266,16568.0,16567.0,4.24166765]
[1672588612334,0.01114266,16568.0,16567.0,4.74428454]
[1672588617162,0.01114266,16568.0,16567.0,4.44249454]
[1672588617404,0.01114266,16568.0,16567.0,4.74428454]